Cogmind - Beta 15 @@@ ROGUE MODE // 2025.10.09 @ 08:36:22 Player: Kotyk77 Result: Destroyed by C4-G8N(R) with Subdweller Shrapnel Launcher Performance ------------- Evolutions (0) 0 Regions Visited (3) 600 Robots Destroyed (28) 140 Value Destroyed (457) 457 Prototype IDs (0) 0 Alien Tech Used (0) 0 Bonus (0) 0 TOTAL SCORE: 1197 Bonus ------- None Cogmind --------- Core Integrity 0/250 Matter 153/300 Energy 100/100 System Corruption 0% Temperature Cool (0) Movement Rolling (120) Ox1 Location -10/Subcaves Parts ------- > --- POWER (1) -------- (None) > --- PROPULSION (2) --- Aluminum Leg Subdweller Monowheel > --- UTILITY (2) ------ Large Storage Unit > --- WEAPON (2) ------- Subdweller Machine Gun > --- INVENTORY (15) --- Ion Engine Light Ion Engine Subdweller Power Source Wheel Flight Unit Flight Unit Targeting Computer Medium Armor Plating Medium Armor Plating Subdweller Shrapnel Launcher Scrap Shield Fragment (46) Scrap Shield Fragment (1) Peak State ------------ > --- POWER ------------ Light Ion Engine > --- PROPULSION ------- Aluminum Leg Aluminum Leg > --- UTILITY ---------- Large Storage Unit Signal Interpreter > --- WEAPON ----------- Improved Light Cannon Improved Light Cannon > --- INVENTORY -------- Ion Engine Light Ion Engine Wheel Flight Unit Flight Unit Targeting Computer Light Armor Plating Medium Armor Plating Medium Armor Plating Blade Trap Blade Trap Piercing Trap [Rating: 10] Favorites ----------- Power Light Ion Engine Engine Light Ion Engine Propulsion Aluminum Leg Leg Aluminum Leg Wheel Wheel Utility Large Storage Unit Device Seismic Detector Storage Large Storage Unit Processor Signal Interpreter Protection Light Armor Plating Weapon Improved Light Cannon Energy Gun Medium Laser Ballistic Gun Assault Rifle Ballistic Cannon Improved Light Cannon Launcher Grenade Launcher Special Weapon Mining Laser Build | -11 -10 -10 -10 ------- Run | Yrd Mat Min Sub Slots Evolved . | . . . . Power . | . . . . Propulsion . | . . . . Utility . | . . . . Weapon . | . . . . Parts Attached 31 | 8 14 . 9 Power 4 | 1 1 . 2 Engine 4 | 1 1 . 2 Core . | . . . . Reactor . | . . . . Propulsion 7 | 2 1 . 4 Treads . | . . . . Leg 2 | . . . 2 Wheel 5 | 2 1 . 2 Hover . | . . . . Flight . | . . . . Utility 5 | 2 2 . 1 Device 1 | 1 . . . Storage 2 | 1 1 . . Processor 1 | . 1 . . Hackware . | . . . . Protection 1 | . . . 1 Artifact . | . . . . Weapon 15 | 3 10 . 2 Energy Gun 4 | 3 1 . . Energy Cannon . | . . . . Ballistic Gun 4 | . 3 . 1 Ballistic Cannon 3 | . 3 . . Launcher 2 | . 1 . 1 Special Weapon 2 | . 2 . . Impact Weapon . | . . . . Slashing Weapon . | . . . . Piercing Weapon . | . . . . Special Melee Weapon . | . . . . Unidentified Prototypes . | . . . . Parts Lost 12 | . 1 . 11 Power 2 | . . . 2 Propulsion 3 | . . . 3 Utility 1 | . . . 1 Weapon 6 | . 1 . 5 Highest Loss Streak 3 | . 1 . 3 To Critical Strikes . | . . . . Average Backups 10 | 2 13 14 9 Power 1 | . 2 2 2 Propulsion 2 | 1 3 3 2 Utility 3 | . 2 4 3 Weapon 2 | . 5 4 . Tool/Special . | . . . . Unused Backups 10 | . 2 1 7 Power 3 | . 1 . 2 Propulsion 2 | . . . 2 Utility 3 | . . . 3 Weapon 2 | . 1 1 . Tool/Special . | . . . . Average Slot Usage (%) 96 | . 99 100 92 Engine 13 | . 14 14 13 Leg 8 | . . . 17 Wheel 18 | . 28 28 9 Device 2 | . 6 . . Storage 14 | . 14 14 14 Processor 8 | . 7 14 8 Protection 1 | . . . 2 Energy Gun 2 | . 5 . . Ballistic Gun 6 | . 7 . 8 Ballistic Cannon 7 | . 6 . 9 Launcher 5 | . 3 14 5 Special Weapon 4 | . 4 14 2 Peak Build Rating 10 | 7 9 8 10 Average Rating 8 | 5 8 8 8 On Entrance 5 | . 7 8 8 Naked Turns . | . . . . Heaviest Build 35 | 13 30 27 35 Greatest Support 26 | 26 26 26 26 Greatest Overweight (x) 3 | . 1 1 3 Average Overweight (x) . | . . 1 1 Largest Inventory Capacity 15 | 8 15 15 15 Average Capacity 14 | 7 14 15 15 Most Carried 15 | 7 15 15 15 Average Carried 12 | 3 13 14 11 Final Capacity 15 | 8 15 15 15 Final Carried 15 | 7 15 15 12 Class Distribution -------------------- 88% | Mutant 11% | Scavenger-Mutant Dominant Class ---------------- Mutant | -10/Materials Mutant | -10/Mines Mutant | -10/Subcaves Resources | -11 -10 -10 -10 ----------- Run | Yrd Mat Min Sub Matter Collected 708 | 236 308 10 154 Remotely . | . . . . Salvage Created 516 | 40 361 . 115 Parts 47 | 7 28 . 12 Haulers Intercepted 2 | . 2 . . Recyclers Shooed . | . . . . Parts Field Recycled . | . . . . Retrieved Matter . | . . . . Parts Self-Destructed 13 | . . . 13 Prevented . | . . . . Kills | -11 -10 -10 -10 ------- Run | Yrd Mat Min Sub Combat Hostiles Destroyed 22 | . 10 1 11 Guns 8 | . 6 . 2 Cannons 7 | . 1 . 6 AOE 7 | . 3 1 3 Classes Destroyed 8 | 1 5 1 1 Worker 1 | . 1 . . Tunneler 2 | 2 . . . Hauler 2 | . 2 . . Watcher 2 | . 2 . . Swarmer 14 | . 6 . 8 Grunt 4 | . 4 . . Subdweller 3 | . . . 3 Assembled 1 | . . 1 . Best Kill Streak 7 | 2 7 1 3 Combat Bots Only 6 | . 6 1 3 Max Kills in Single Turn 4 | 1 4 1 2 Gunslinging . | . . . . Exploded 2 | . 2 1 2 Melee . | . . . . Uniques/NPCs Destroyed . | . . . . Combat | -11 -10 -10 -10 -------- Run | Yrd Mat Min Sub Hostile Shots Fired 172 | . 45 5 122 Missed 58 | . 14 2 42 Hits 114 | . 31 3 80 Projectile 114 | . 31 3 80 AOE 4 | . . . 4 Critical Strikes 1 | . . . 1 Damage Taken 1525 | . 281 32 1212 Core 262 | . 39 10 213 Absorbed by Shields . | . . . . Core Remaining (%) 100 | 100 . . . Volleys Fired 82 | 3 45 2 32 Largest 2 | 1 2 1 2 Hottest 100 | 50 100 30 70 Shots Fired 129 | 3 77 2 47 Gun 75 | 3 61 . 11 Cannon 40 | . 10 . 30 Launcher 10 | . 2 2 6 Special 4 | . 4 . . Kinetic 85 | . 43 . 42 Thermal 35 | 3 32 . . Explosive 9 | . 2 2 5 Electromagnetic . | . . . . Robot Hit Streak 20 | 3 5 1 20 Robot Miss Streak 6 | . 6 1 3 Penetration Max . | . . . . Secondary Targets 3 | . 3 . . Max Gunslinging Chain 1 | . 1 . . Shots Hit Robots 65 | 3 31 1 30 Core Hits 42 | 2 21 2 17 Critical Kills . | . . . . Critical Parts Destroyed 1 | . . . 1 Critical Strikes 2 | 1 . . 1 Burn 1 | 1 . . . Destroy 1 | . . . 1 Melee Attacks . | . . . . Impact . | . . . . Slashing . | . . . . Piercing . | . . . . Sneak Attacks . | . . . . Combat Hostiles . | . . . . Follow-up Attacks . | . . . . Damage Inflicted 1624 | 37 655 71 861 Guns 537 | 37 345 . 155 Cannons 522 | . 39 . 483 Explosions 565 | . 271 71 223 Melee . | . . . . Ramming . | . . . . Kinetic 808 | . 170 . 638 Thermal 251 | 37 214 . . Explosive 565 | . 271 71 223 Electromagnetic . | . . . . Impact . | . . . . Slashing . | . . . . Piercing . | . . . . Highest Corruption . | . . . . Average Corruption . | . . . . Corruption Purged . | . . . . Corruption Blocked . | . . . . Overload Shots . | . . . . Overflow Damage 16 | . 11 . 5 Projectiles . | . . . . Explosions 16 | . 11 . 5 Melee . | . . . . Knockbacks 5 | . . . 5 Impact . | . . . . Kinetic 5 | . . . 5 Secondary . | . . . . Self-Inflicted Damage 41 | . . . 41 Shots 2 | . . . 2 Rammed . | . . . . Targets Rammed . | . . . . Kicked . | . . . . Crushed . | . . . . Highest Temperature 275 | 20 190 . 275 Average Temperature 73 | 10 68 . 138 Received Heat Transfer 604 | . 72 20 512 Siege Activations . | . . . . Martial Activations . | . . . . Shielding Activations . | . . . . Robots Disrupted . | . . . . Combat Hostiles . | . . . . Robots Corrupted . | . . . . Combat Hostiles . | . . . . Parts Fried . | . . . . Impact Corruptions . | . . . . Robots Melted . | . . . . Combat Hostiles . | . . . . Parts Melted 1 | . 1 . . Heat Transferred 779 | 185 594 . . Parts Sabotaged . | . . . . Parts Stolen . | . . . . Parts Stripped . | . . . . Power Chain Reactions . | . . . . Alert | -11 -10 -10 -10 ------- Run | Yrd Mat Min Sub Maximum Alert Level . | . . . . Low Security (%) 100 | 100 100 100 . Level 1 . | . . . . Level 2 . | . . . . Level 3 . | . . . . Level 4 . | . . . . Level 5 . | . . . . High Security . | . . . . Max Security . | . . . . Peak Influence 129 | 10 129 24 . Initial 24 | . . 24 . Average 53 | . 71 6 . Influence Increases 571 | 10 328 8 225 Destroy 0b10 Robot/C 360 | . 200 . 160 Destroy 0b10 Robot/NC 35 | 10 25 . . Destroy Leader 68 | . 48 . 20 Successful Hack 29 | . 29 . . Disable Machine 15 | . 15 . . Destroy Structure 19 | . 11 8 . Lose Combat Pursuer 45 | . . . 45 Influence Decreases 571 | 10 264 64 233 Entered New Map 45 | . . 40 5 Time Decay 447 | 10 254 24 159 Lost Part 79 | . 10 . 69 Squads Dispatched 2 | . 2 . . Investigation 1 | . 1 . . Extermination . | . . . . Reinforcement 1 | . 1 . . Assault . | . . . . Garrison . | . . . . Intercept . | . . . . Searches Triggered . | . . . . Construction Impeded . | . . . . Haulers Reinforced . | . . . . Active Scanning Responses . | . . . . Cargo Convoy Interrupts . | . . . . Stealth | -11 -10 -10 -10 --------- Run | Yrd Mat Min Sub Distress Signals 3 | . 2 1 . Communications Jammed . | . . . . Distress Signals . | . . . . Times Spotted 35 | . 17 3 15 Peak Tracking Total 6 | . 6 2 6 Tactical Retreats 2 | . . . 2 Traps | -11 -10 -10 -10 ------- Run | Yrd Mat Min Sub Traps Triggered 2 | . 1 . 1 Indirectly . | . . . . Trap Hack Attempts . | . . . . Triggered . | . . . . Disarmed . | . . . . Reprogrammed . | . . . . Reused 3 | . . . 3 Traps Extracted . | . . . . Installed 3 | . . . 3 Triggered . | . . . . Most Traps Carried 3 | . . 3 3 Machines | -11 -10 -10 -10 ---------- Run | Yrd Mat Min Sub Machines Disabled 2 | . 1 . 1 Max in Single Turn 1 | . 1 . 1 Machines Repaired . | . . . . Machines Dismantled . | . . . . Machines Sabotaged . | . . . . Overloaded Fab Kills . | . . . . Hacking | -11 -10 -10 -10 --------- Run | Yrd Mat Min Sub Machines Accessed 5 | . 5 . . Terminals 5 | . 5 . . Fabricators . | . . . . Repair Stations . | . . . . Recycling Units . | . . . . Scanalyzers . | . . . . Garrison Access . | . . . . Total Hacks 16 | . 16 . . Successful 8 | . 8 . . Failed 7 | . 7 . . Catastrophic . | . . . . Database Lockouts 1 | . 1 . . Manual 16 | . 16 . . Terminals 16 | . 16 . . Fabricators . | . . . . Repair Stations . | . . . . Recycling Units . | . . . . Scanalyzers . | . . . . Garrison Access . | . . . . Terminal Hacks 4 | . 4 . . Robot Analysis 3 | . 3 . . Terminal Index 1 | . 1 . . Fabricator Hacks . | . . . . Repair Station Hacks . | . . . . Recycling Unit Hacks . | . . . . Scanalyzer . | . . . . Garrison Access Hacks . | . . . . Unauthorized Hacks 4 | . 4 . . Terminals 4 | . 4 . . Botnet 4 | . 4 . . Fabricators . | . . . . Repair Stations . | . . . . Recycling Units . | . . . . Scanalyzers . | . . . . Garrison Access . | . . . . Data Cores Recovered . | . . . . Used . | . . . . Hacking Detections 4 | . 4 . . Full Trace Events . | . . . . Feedback Events . | . . . . Feedback Blocked . | . . . . Robot Schematics Acquired . | . . . . Robots Built . | . . . . Authchips . | . . . . Time . | . . . . Total Robot Build Rating . | . . . . Part Schematics Acquired . | . . . . Parts Built . | . . . . Authchips . | . . . . Time . | . . . . Total Part Build Rating . | . . . . Parts Repaired . | . . . . Time . | . . . . Parts Recycled . | . . . . Recycled Matter . | . . . . Retrieved Matter . | . . . . Retrieved Components . | . . . . Parts Scanalyzed . | . . . . Part Schematics Acquired . | . . . . Parts Damaged . | . . . . Bothacking | -11 -10 -10 -10 ------------ Run | Yrd Mat Min Sub Used RIF Installer . | . . . . Robots Hacked . | . . . . Non-combat . | . . . . Combat . | . . . . Robot Hacks Applied . | . . . . Relay Couplers Released . | . . . . Fabnet Peak Effective % . | . . . . Robots Rewired . | . . . . Allies Hacked . | . . . . Hacks Repelled . | . . . . Allies | -11 -10 -10 -10 -------- Run | Yrd Mat Min Sub Total Allies . | . . . . Largest Group . | . . . . Highest-Rated Group . | . . . . Highest-Rated Ally . | . . . . Total Orders . | . . . . Ally Attacks . | . . . . Total Damage . | . . . . Kills . | . . . . Allies Corrupted . | . . . . Allies Melted . | . . . . Intel | -11 -10 -10 -10 ------- Run | Yrd Mat Min Sub Active Infowar (turns) 281 | 14 267 . . Seismic 281 | 14 267 . . Robot Analysis Total 2 | . 2 . . Derelict Logs Recovered 2 | . . 1 1 Drone Launches . | . . . . Drone Recoveries . | . . . . Exploration | -11 -10 -10 -10 ------------- Run | Yrd Mat Min Sub Turns Passed 1532 | 74 573 139 746 Spaces Moved 1004 | 56 396 124 428 Core 2 | 2 . . . Treads . | . . . . Legs 175 | . . . 175 Wheels 827 | 54 396 124 253 Hover . | . . . . Flight . | . . . . Fastest Speed 50 | 50 90 105 105 Average Speed 120 | 88 101 105 146 Slowest Speed 330 | 100 105 105 330 Overloaded Moves . | . . . . Propulsion Burnouts . | . . . . Robots Hopped . | . . . . Potential Cave-ins . | . . . . Cave-ins Triggered . | . . . . Exploration Rate (%) 33 | 3 64 38 28 Regions Visited 3 Branch Regions 2 Pre-discovered Areas 1 | . . . 1 Known Exits Taken 2 | . 1 1 . Unknown Exits Taken 1 | 1 . . . Scrap Searched 1 | . . 1 . Spaces Dug 8 | . 4 . 4 Terrain Destroyed 63 | . 10 9 44 Melee . | . . . . Projectile 5 | . 5 . . AOE 58 | . 5 9 44 Terrain Rammed . | . . . . Walls Destroyed . | . . . . Machines Disabled . | . . . . Actions | -11 -10 -10 -10 --------- Run | Yrd Mat Min Sub Total 1195 | 73 488 132 502 Wait 26 | . 10 1 15 Move 1001 | 55 395 123 428 Hop . | . . . . Pick Up 26 | 7 9 3 7 Fast Attach 15 | 7 6 . 2 Attach 7 | . . . 7 Detach 4 | . 3 . 1 Swap 13 | 1 9 . 3 Drop 18 | . 11 3 4 Fire 82 | 3 45 2 32 Melee . | . . . . Ram . | . . . . Kick . | . . . . Crush . | . . . . Escape Stasis . | . . . . Rewire . | . . . . Trap 3 | . . . 3 Miscellaneous . | . . . . Route ------- -11/Scrapyard -10/Materials (discovered 2 exits: *Mat / *Min) -10/Mines -10/Subcaves History --------- Turn | Location | Event 28 | -11/Scrapyard | Discovered new exit (range 15) 75 | -11/Scrapyard | Entered Materials 316 | -10/Materials | Build established: Mutant 420 | -10/Materials | Discovered new exit (range 15) 447 | -10/Materials | Identified exit to Materials 534 | -10/Materials | Central database locked down 611 | -10/Materials | Discovered new exit (range 10) 622 | -10/Materials | Identified exit to Mines 648 | -10/Materials | Entered Mines 688 | -10/Mines | Assembled infested the area 710 | -10/Mines | Learned Materials trap positions 734 | -10/Mines | Found a hidden stash of uninstalled traps 771 | -10/Mines | Discovered new exit (range 15) 786 | -10/Mines | Identified exit to Subcaves 787 | -10/Mines | Entered Subcaves 788 | -10/Subcaves | Approached by a straggling Scientist 802 | -10/Subcaves | Learned location of Storage (-8) 846 | -10/Subcaves | Shifting Twisted Machinery released Piercing Trap 860 | -10/Subcaves | Shifting Twisted Machinery released Piercing Trap 979 | -10/Subcaves | Lost 3 parts (1p1n1w) 1202 | -10/Subcaves | Core integrity fell below 50% 1337 | -10/Subcaves | Core integrity fell below 20% 1386 | -10/Subcaves | Lost 3 parts (1n1u1w) 1531 | -10/Subcaves | Ambushed by Subdweller buried in earth 1533 | -10/Subcaves | Destroyed by C4-G8N(R) with Subdweller Shrapnel Launcher Last Messages --------------- 01323_ Aluminum Leg destroyed. 01332_ YG-6BA(R) knocked back. 01338_ YG-6BA(R) suffers critical hit (Destroy). 01338_ Destroyed Sub. Monowheel. 01338_ YG-6BA(R) knocked back. 01341_ YG-6BA(R) destroyed. 01345_ Acquired 4 matter. 01353_ Imp. Light Cannon destroyed. 01355_ Lgt. Armor Plating destroyed. 01355_ ZX-FO9(R) destroyed. 01361_ Acquired Sub. Power Source. 01362_ Acquired 7 matter. 01367_ Subatomizers dissect the Sub. Monowheel. 01368_ Acquired Sub. Monowheel. 01370_ Acquired Sub. Shrapnel Launcher. 01377_ Acquired Scrap Shield Fragment. 01400_ Acquired 12 matter. 01518_ Acquired 8 matter. 01531_ C4-G8N(R) comes tumbling out of the earth. 01533_ Lgt. Ion Engine destroyed. Map ----- +----------------------------------------------------+ | ?????????????????????????????????????????????????? | | ?????????????????????????????????????????????????? | | ?????????????????????????????????????????????????? | | ?????????????????????????????????????????????????? | | ?????????????????????????????????????????????????? | | ?????????????????????????????????????????????????? | | ?????????????????????????????????????????????????? | | ?????????????????????????????????????????????????? | | ?????????????????????????????????????????????????? | | ?????????????????????????????????????????????????? | | ?????????????????????????????????????????????????? | | ?????????????????????????????????????????????????? | | ?????????????????????????????????????????????????? | | ?????????????????????????????????????????????????? | | ?????????????????????????????????????????????????? | | ?????????????????????????????????????????????????? | | ?????????????????????????????????????????????????? | | ?????????????????????????????????????????????????? | | ?????????????????????????????????????????????????? | | ?????????????????????????????????????????????????? | | ????????????????????##????#??????????????????????? | | ????????????????????# ####%??????????????????????? | | ????????????????????# # ##?????????????????????? | | ????????????????????# ;;##????????????????????? | | ?????????????????????# %%;;;#????????????????????? | | ?????????????????????# R@;;#????????????????????? | | ?????????????????????# #????????????????????? | | ?????????????????????# ;#????????????????????? | | ?????????????????????## # ;#????????????????????? | | ??????????????????????# ### ##???????????????????? | | ??????????????????????# ??## ##??????????????????? | | ??????????????????????# ???# #??????????????????? | | ??????????????????????#????## ##?????????????????? | | ????????????????????????????## ##????????????????? | | ?????????????????????????????## ##???????????????? | | ??????????????????????????????# #???????????????? | | ?????????????????????????????## ##???????????????? | | ?????????????????????????????# ##????????????????? | | ?????????????????????????????# #?????????????????? | | ?????????????????????????????# ##????????????????? | | ?????????????????????????????## #????????????????? | | ????????????????????????#????## #????????????????? | | ???????????????????????? ???## ##????????????????? | | ??????????????????????## ??## ##?????????????????? | | ??????????????????????# #?## ##??????????????????? | | ??????????????????????# ### ##???????????????????? | | ?????????????????????## ## #????????????????????? | | ?????????????????????# # # ?????????????????? | | ??????????????????????# ## ?????????????? | | ?????????????????????## ## ?????????? | +----------------------------------------------------+ Best States ------------- Heat Dissipation 25 Energy Generation 10 Energy Capacity 250 Matter Stores 300 Matter Capacity 300 Sight Range 16 Terrain Scan Density 10 Armor Coverage 150 Evasion (%) 42 Item Schematics ----------------- None Robot Schematics ------------------ None Fabricated ------------ Nothing Repaired ---------- Nothing Alien Tech Used ----------------- None Achievements -------------- None Challenges ------------ None Game ------ Seed ThiefNeutronMatterbank Manual? 0 Play Time 00:20:08 Cumulative 81.4 hours Start 2025.10.09 @ 08:18:57 End 2025.10.09 @ 08:36:22 Sessions 1 Manual Loads 0 Difficulty Rogue Special Mode None Game No. 84 Rogue 84 Adventurer 0 Explorer 0 Win Type - Total 0 Types 0/0/0/0/0/0/0/0/0/0 Lore% 20 Gallery% 39 Achievement% 33 Wizard Run 0 Options --------- Layout 1 ASCII 0 Keyboard 1 Movement Numpad Keybinds 0 Fullscreen 1 Font 32/SmallcapsGlow Map View 77x35 Zoom Use 0% Tactical HUD 1 Map Filters NONE Filters NONE Steam 1 RUN: 41e2dafb-09b5-4937-ad1b-c469e8013b9a